[Event "Early-Titled-Tuesday-Blitz-November-28-2023"]
[Site "Chess.com"]
[Date "2023.11.28"]
[Round "11"]
[White "baki83"]
[Black "rasmussvane"]
[Result "1-0"]
[WhiteElo "2833"]
[BlackElo "2970"]
[TimeControl "180+1"]
[EndTime "10:12:03 PST"]
[Termination "baki83 won on time"]

1. e4 {[%clk 0:02:58.2]} 1... c6 {[%clk 0:02:56.2]} 2. Nf3 {[%clk 0:02:57]} 2...
d5 {[%clk 0:02:55.7]} 3. e5 {[%clk 0:02:57.2]} 3... Bf5 {[%clk 0:02:48.2]} 4.
Nd4 {[%clk 0:02:57.3]} 4... Qc8 {[%clk 0:02:39]} 5. Nxf5 {[%clk 0:02:52.2]} 5...
Qxf5 {[%clk 0:02:39.9]} 6. d4 {[%clk 0:02:52.6]} 6... Qc8 {[%clk 0:02:26.3]} 7.
c3 {[%clk 0:02:46.7]} 7... e6 {[%clk 0:02:20.6]} 8. Bd3 {[%clk 0:02:44.8]} 8...
c5 {[%clk 0:02:18.3]} 9. O-O {[%clk 0:02:44.1]} 9... Nc6 {[%clk 0:02:11.9]} 10.
Be3 {[%clk 0:02:43.9]} 10... Nge7 {[%clk 0:01:58.8]} 11. Nd2 {[%clk 0:02:39.6]}
11... cxd4 {[%clk 0:01:53.9]} 12. cxd4 {[%clk 0:02:39.5]} 12... Nf5 {[%clk
0:01:54.1]} 13. Rc1 {[%clk 0:02:36.5]} 13... Qd7 {[%clk 0:01:53.7]} 14. Nf3
{[%clk 0:02:12.2]} 14... Be7 {[%clk 0:01:47.4]} 15. a3 {[%clk 0:02:11.7]} 15...
O-O {[%clk 0:01:40.5]} 16. Rc3 {[%clk 0:02:11.4]} 16... Rac8 {[%clk 0:01:34]}
17. Qc2 {[%clk 0:02:11.5]} 17... h6 {[%clk 0:01:31]} 18. Rc1 {[%clk 0:02:10.2]}
18... Rc7 {[%clk 0:01:26.3]} 19. b4 {[%clk 0:02:01]} 19... a6 {[%clk 0:01:21.4]}
20. Bxa6 {[%clk 0:02:00.8]} 20... bxa6 {[%clk 0:00:53.1]} 21. Rxc6 {[%clk
0:02:00.7]} 21... Rxc6 {[%clk 0:00:49.5]} 22. Qxc6 {[%clk 0:02:00.6]} 22... Qxc6
{[%clk 0:00:49.7]} 23. Rxc6 {[%clk 0:02:00]} 23... Nxe3 {[%clk 0:00:42.9]} 24.
fxe3 {[%clk 0:01:59.4]} 24... Ra8 {[%clk 0:00:41.8]} 25. Rc7 {[%clk 0:01:20.7]}
25... Bf8 {[%clk 0:00:37.9]} 26. Nd2 {[%clk 0:00:59.7]} 26... a5 {[%clk
0:00:37.4]} 27. b5 {[%clk 0:00:59.6]} 27... Bxa3 {[%clk 0:00:33.9]} 28. b6
{[%clk 0:00:59.9]} 28... Bf8 {[%clk 0:00:16.8]} 29. b7 {[%clk 0:00:59.5]} 29...
Rb8 {[%clk 0:00:17]} 30. Nb3 {[%clk 0:00:59.6]} 30... a4 {[%clk 0:00:17.5]} 31.
Nc1 {[%clk 0:00:48.4]} 31... a3 {[%clk 0:00:16.4]} 32. Na2 {[%clk 0:00:48.7]}
32... Kh7 {[%clk 0:00:13]} 33. Rxf7 {[%clk 0:00:45.7]} 33... Kg6 {[%clk
0:00:13.3]} 34. Rc7 {[%clk 0:00:45.7]} 34... Kf5 {[%clk 0:00:09.3]} 35. Kf2
{[%clk 0:00:46]} 35... g5 {[%clk 0:00:07.2]} 36. h3 {[%clk 0:00:44.1]} 36... h5
{[%clk 0:00:07.1]} 37. Kf3 {[%clk 0:00:40.5]} 37... g4+ {[%clk 0:00:07.6]} 38.
hxg4+ {[%clk 0:00:40.9]} 38... hxg4+ {[%clk 0:00:08.5]} 39. Kf2 {[%clk
0:00:41.2]} 39... Bh6 {[%clk 0:00:09.2]} 40. Ke2 {[%clk 0:00:40.9]} 40... Kg6
{[%clk 0:00:07.3]} 41. Nc3 {[%clk 0:00:39]} 41... Kf5 {[%clk 0:00:06.9]} 42. Na2
{[%clk 0:00:39]} 42... Bg5 {[%clk 0:00:06.6]} 43. Kd3 {[%clk 0:00:39.1]} 43...
g3 {[%clk 0:00:05.1]} 44. Ke2 {[%clk 0:00:36.7]} 44... Bh6 {[%clk 0:00:04.5]}
45. Kf3 {[%clk 0:00:36.7]} 45... Bg5 {[%clk 0:00:04.6]} 46. Nb4 {[%clk
0:00:35.6]} 46... Kg6 {[%clk 0:00:03.5]} 47. e4 {[%clk 0:00:30]} 47... dxe4+
{[%clk 0:00:03.9]} 48. Kxe4 {[%clk 0:00:30.3]} 48... Bd2 {[%clk 0:00:03.9]} 49.
Na2 {[%clk 0:00:30.6]} 49... Ba5 {[%clk 0:00:03.8]} 50. Re7 {[%clk 0:00:27.7]}
50... Kg5 {[%clk 0:00:03.6]} 51. d5 {[%clk 0:00:26]} 51... exd5+ {[%clk
0:00:03.6]} 52. Kxd5 {[%clk 0:00:26.6]} 52... Kf4 {[%clk 0:00:04.3]} 53. e6
{[%clk 0:00:24.9]} 53... Ke3 {[%clk 0:00:04.2]} 54. Rf7 {[%clk 0:00:25.1]} 54...
Bd8 {[%clk 0:00:02.4]} 55. Kc6 {[%clk 0:00:24.7]} 55... Bg5 {[%clk 0:00:01.2]}
56. Rf3+ {[%clk 0:00:21.6]} 1-0

[Event "Early-Titled-Tuesday-Blitz-November-28-2023"]
[Site "Chess.com"]
[Date "2023.11.28"]
[Round "11"]
[White "luckyswitchback"]
[Black "defenceboy"]
[Result "1/2-1/2"]
[WhiteElo "2816"]
[BlackElo "2873"]
[TimeControl "180+1"]
[EndTime "10:12:04 PST"]
[Termination "Game drawn - insufficient material"]

1. e4 {[%clk 0:02:58.6]} 1... c6 {[%clk 0:02:59.4]} 2. Nf3 {[%clk 0:02:58.4]}
2... d5 {[%clk 0:02:59.7]} 3. d3 {[%clk 0:02:58.9]} 3... dxe4 {[%clk 0:02:59.1]}
4. dxe4 {[%clk 0:02:59.8]} 4... Qxd1+ {[%clk 0:02:59.6]} 5. Kxd1 {[%clk
0:02:59.9]} 5... g6 {[%clk 0:03:00.5]} 6. Ne5 {[%clk 0:02:57.4]} 6... Nd7 {[%clk
0:02:50.9]} 7. Nd3 {[%clk 0:02:55.8]} 7... e5 {[%clk 0:02:40.9]} 8. f3 {[%clk
0:02:52.7]} 8... f6 {[%clk 0:02:37.9]} 9. Nd2 {[%clk 0:02:48.8]} 9... Nc5 {[%clk
0:02:36.1]} 10. Nxc5 {[%clk 0:02:44.4]} 10... Bxc5 {[%clk 0:02:37]} 11. Bc4
{[%clk 0:02:44.6]} 11... Ke7 {[%clk 0:02:29.4]} 12. a4 {[%clk 0:02:44.3]} 12...
Be6 {[%clk 0:02:29.2]} 13. c3 {[%clk 0:02:43]} 13... Rd8 {[%clk 0:02:27.4]} 14.
Bxe6 {[%clk 0:02:43.2]} 14... Kxe6 {[%clk 0:02:28.3]} 15. Kc2 {[%clk 0:02:43.2]}
15... Ne7 {[%clk 0:02:28.5]} 16. Nc4 {[%clk 0:02:40.4]} 16... Nc8 {[%clk
0:02:12.7]} 17. b4 {[%clk 0:02:23.6]} 17... Be7 {[%clk 0:02:12.4]} 18. Be3
{[%clk 0:02:22.5]} 18... Rd7 {[%clk 0:02:12.5]} 19. Rad1 {[%clk 0:02:19.3]}
19... Rhd8 {[%clk 0:02:11.7]} 20. Na5 {[%clk 0:02:18.6]} 20... Nb6 {[%clk
0:01:39.9]} 21. Rxd7 {[%clk 0:02:02.6]} 21... Rxd7 {[%clk 0:01:40.8]} 22. Bxb6
{[%clk 0:02:02.2]} 22... axb6 {[%clk 0:01:40.5]} 23. Nc4 {[%clk 0:02:02.7]}
23... Bd8 {[%clk 0:01:40.7]} 24. Rb1 {[%clk 0:01:45.5]} 24... f5 {[%clk
0:01:23.9]} 25. b5 {[%clk 0:01:42]} 25... fxe4 {[%clk 0:01:20.4]} 26. fxe4
{[%clk 0:01:41.6]} 26... Rc7 {[%clk 0:01:09.5]} 27. Rd1 {[%clk 0:01:26.4]} 27...
cxb5 {[%clk 0:01:05.8]} 28. Nxb6 {[%clk 0:01:25.2]} 28... Rc6 {[%clk 0:00:54.7]}
29. Rxd8 {[%clk 0:01:13.7]} 29... Rxb6 {[%clk 0:00:54.9]} 30. axb5 {[%clk
0:00:58.3]} 30... Rxb5 {[%clk 0:00:55.8]} 31. Re8+ {[%clk 0:00:58.5]} 31... Kf6
{[%clk 0:00:53.2]} 32. Rb8 {[%clk 0:00:54.2]} 32... Ke6 {[%clk 0:00:51]} 33. g4
{[%clk 0:00:51.7]} 33... h6 {[%clk 0:00:44]} 34. Rh8 {[%clk 0:00:47.9]} 34...
Kf6 {[%clk 0:00:43.8]} 35. h4 {[%clk 0:00:46.8]} 35... Kg7 {[%clk 0:00:43.7]}
36. Rb8 {[%clk 0:00:46.2]} 36... Kf6 {[%clk 0:00:44.1]} 37. Kd3 {[%clk
0:00:42.4]} 37... Rb1 {[%clk 0:00:43.7]} 38. Rh8 {[%clk 0:00:37.1]} 38... Rg1
{[%clk 0:00:36.7]} 39. Rxh6 {[%clk 0:00:36.7]} 39... Rxg4 {[%clk 0:00:34.5]} 40.
h5 {[%clk 0:00:27.6]} 40... Kg7 {[%clk 0:00:17.3]} 41. Rxg6+ {[%clk 0:00:27.3]}
41... Rxg6 {[%clk 0:00:17.8]} 42. hxg6 {[%clk 0:00:28.2]} 42... Kxg6 {[%clk
0:00:18.7]} 43. Kc4 {[%clk 0:00:27.8]} 43... Kg5 {[%clk 0:00:18.4]} 44. Kd5
{[%clk 0:00:13.5]} 44... Kf4 {[%clk 0:00:18.5]} 45. c4 {[%clk 0:00:13.7]} 45...
b6 {[%clk 0:00:19]} 46. Kc6 {[%clk 0:00:14.2]} 46... Kxe4 {[%clk 0:00:18.3]} 47.
Kxb6 {[%clk 0:00:14.7]} 47... Kd3 {[%clk 0:00:16.4]} 48. c5 {[%clk 0:00:14.7]}
48... e4 {[%clk 0:00:16.9]} 49. c6 {[%clk 0:00:15.4]} 49... e3 {[%clk
0:00:17.8]} 50. c7 {[%clk 0:00:16]} 50... e2 {[%clk 0:00:18.7]} 51. c8=Q {[%clk
0:00:16.7]} 51... e1=Q {[%clk 0:00:19.2]} 52. Qd7+ {[%clk 0:00:16.9]} 52... Ke2
{[%clk 0:00:19.5]} 53. Qe6+ {[%clk 0:00:17]} 53... Kd1 {[%clk 0:00:20.4]} 54.
Qxe1+ {[%clk 0:00:17.9]} 54... Kxe1 {[%clk 0:00:21.3]} 1/2-1/2

[Event "Early-Titled-Tuesday-Blitz-November-28-2023"]
[Site "Chess.com"]
[Date "2023.11.28"]
[Round "11"]
[White "Alexander_Donchenko"]
[Black "MITerryble"]
[Result "1-0"]
[WhiteElo "2923"]
[BlackElo "2961"]
[TimeControl "180+1"]
[EndTime "10:12:09 PST"]
[Termination "Alexander_Donchenko won by resignation"]

1. Nf3 {[%clk 0:03:00.9]} 1... Nf6 {[%clk 0:02:59.5]} 2. g3 {[%clk 0:03:01.2]}
2... b6 {[%clk 0:02:59.8]} 3. Bg2 {[%clk 0:03:01.7]} 3... Bb7 {[%clk 0:03:00.3]}
4. O-O {[%clk 0:03:02.4]} 4... g6 {[%clk 0:03:00.1]} 5. d4 {[%clk 0:03:02.2]}
5... Bg7 {[%clk 0:03:00.3]} 6. c4 {[%clk 0:03:02.6]} 6... e6 {[%clk 0:03:00.9]}
7. Nc3 {[%clk 0:02:58.9]} 7... Ne4 {[%clk 0:03:01]} 8. Nxe4 {[%clk 0:02:54.5]}
8... Bxe4 {[%clk 0:03:01.9]} 9. Bg5 {[%clk 0:02:50.9]} 9... Qc8 {[%clk
0:03:01.7]} 10. Qd2 {[%clk 0:02:48.1]} 10... h6 {[%clk 0:02:47.3]} 11. Bf4
{[%clk 0:02:45.1]} 11... d6 {[%clk 0:02:47.7]} 12. h4 {[%clk 0:02:42.3]} 12...
Nd7 {[%clk 0:02:45.8]} 13. Rad1 {[%clk 0:02:36.5]} 13... Nf6 {[%clk 0:02:40.7]}
14. c5 {[%clk 0:02:27.4]} 14... Qd7 {[%clk 0:02:23.3]} 15. cxd6 {[%clk
0:02:23.6]} 15... cxd6 {[%clk 0:02:24.2]} 16. Qb4 {[%clk 0:02:21.5]} 16... Bf8
{[%clk 0:01:32.5]} 17. Qa3 {[%clk 0:02:06]} 17... Nd5 {[%clk 0:01:21.1]} 18. Bd2
{[%clk 0:02:05.1]} 18... Bg7 {[%clk 0:01:16.2]} 19. e3 {[%clk 0:01:56.5]} 19...
Qb7 {[%clk 0:01:11.5]} 20. Qxd6 {[%clk 0:01:40.9]} 20... Rd8 {[%clk 0:01:07.5]}
21. Qa3 {[%clk 0:01:39.7]} 21... g5 {[%clk 0:00:57.2]} 22. h5 {[%clk 0:01:25.4]}
22... Nf6 {[%clk 0:00:50.5]} 23. Ne1 {[%clk 0:01:21.1]} 23... Bxg2 {[%clk
0:00:47.8]} 24. Nxg2 {[%clk 0:01:22]} 24... Nxh5 {[%clk 0:00:45.8]} 25. Rc1
{[%clk 0:01:18.5]} 25... Nf6 {[%clk 0:00:43.1]} 26. Rc2 {[%clk 0:01:14]} 26...
Bf8 {[%clk 0:00:34.1]} 27. Qa4+ {[%clk 0:01:12.2]} 27... Qd7 {[%clk 0:00:34]}
28. Qa6 {[%clk 0:01:06.4]} 28... Bd6 {[%clk 0:00:32]} 29. Qd3 {[%clk 0:00:52.7]}
29... O-O {[%clk 0:00:29.9]} 30. Bc3 {[%clk 0:00:50.4]} 30... Bb8 {[%clk
0:00:25.5]} 31. e4 {[%clk 0:00:47.5]} 31... e5 {[%clk 0:00:25]} 32. d5 {[%clk
0:00:47.2]} 32... Qh3 {[%clk 0:00:22.8]} 33. Ne3 {[%clk 0:00:41]} 33... Bd6
{[%clk 0:00:22.6]} 34. b4 {[%clk 0:00:31.7]} 34... Rfe8 {[%clk 0:00:22.5]} 35.
Be1 {[%clk 0:00:30.5]} 35... Rc8 {[%clk 0:00:20.6]} 36. Nf5 {[%clk 0:00:23.2]}
36... Bf8 {[%clk 0:00:11.6]} 37. f3 {[%clk 0:00:20.5]} 37... g4 {[%clk
0:00:09.2]} 38. Rh2 {[%clk 0:00:18.8]} 38... Rc1 {[%clk 0:00:03.7]} 39. Rxh3
{[%clk 0:00:18.4]} 39... gxh3 {[%clk 0:00:04.6]} 40. Bd2 {[%clk 0:00:16.7]}
40... h2+ {[%clk 0:00:02.5]} 41. Kxh2 {[%clk 0:00:16.6]} 41... Rxf1 {[%clk
0:00:03]} 42. Qxf1 {[%clk 0:00:17.3]} 42... Rc8 {[%clk 0:00:03.5]} 43. Qd3
{[%clk 0:00:16.9]} 43... Rc7 {[%clk 0:00:03.1]} 44. Bxh6 {[%clk 0:00:16.3]}
44... Bxb4 {[%clk 0:00:03.4]} 45. Bg5 {[%clk 0:00:15.9]} 45... Nd7 {[%clk
0:00:02.7]} 46. d6 {[%clk 0:00:15.1]} 46... Rc3 {[%clk 0:00:03]} 47. Qb5 {[%clk
0:00:14.3]} 47... Rc2+ {[%clk 0:00:02.5]} 48. Kh3 {[%clk 0:00:14.7]} 48... Nf8
{[%clk 0:00:02.4]} 49. Qxb4 {[%clk 0:00:14.6]} 49... Ne6 {[%clk 0:00:02.9]} 50.
Bh4 {[%clk 0:00:13.5]} 50... Rc1 {[%clk 0:00:01.7]} 51. d7 {[%clk 0:00:13.2]}
51... Rd1 {[%clk 0:00:02.2]} 52. Qe7 {[%clk 0:00:12.2]} 52... Rd2 {[%clk
0:00:02.1]} 53. Qe8+ {[%clk 0:00:12.1]} 53... Kh7 {[%clk 0:00:02.6]} 54. Qxf7+
{[%clk 0:00:12.2]} 1-0

[Event "Early-Titled-Tuesday-Blitz-November-28-2023"]
[Site "Chess.com"]
[Date "2023.11.28"]
[Round "11"]
[White "PawnEatingZombie"]
[Black "Pastore1978"]
[Result "0-1"]
[WhiteElo "2180"]
[BlackElo "2342"]
[TimeControl "180+1"]
[EndTime "10:12:12 PST"]
[Termination "Pastore1978 won on time"]

1. e4 {[%clk 0:03:00.9]} 1... e6 {[%clk 0:02:57.1]} 2. Nf3 {[%clk 0:02:58.9]}
2... d5 {[%clk 0:02:57.3]} 3. e5 {[%clk 0:02:59.5]} 3... c5 {[%clk 0:02:56.8]}
4. b4 {[%clk 0:03:00.1]} 4... d4 {[%clk 0:02:57.2]} 5. bxc5 {[%clk 0:02:57.4]}
5... Bxc5 {[%clk 0:02:58.1]} 6. Bd3 {[%clk 0:02:42.2]} 6... Nc6 {[%clk
0:02:56.1]} 7. O-O {[%clk 0:02:40.1]} 7... Nge7 {[%clk 0:02:56.4]} 8. Re1 {[%clk
0:02:38.1]} 8... Ng6 {[%clk 0:02:56.3]} 9. Na3 {[%clk 0:02:17.6]} 9... O-O
{[%clk 0:02:46.3]} 10. Nc4 {[%clk 0:01:40.1]} 10... a6 {[%clk 0:02:40.6]} 11. a4
{[%clk 0:01:38.8]} 11... Nb4 {[%clk 0:02:38.1]} 12. Bf1 {[%clk 0:01:37.3]} 12...
Rb8 {[%clk 0:02:22.8]} 13. a5 {[%clk 0:01:35.7]} 13... Bd7 {[%clk 0:02:14.8]}
14. Ba3 {[%clk 0:01:32]} 14... Bb5 {[%clk 0:02:14.6]} 15. c3 {[%clk 0:01:27.4]}
15... dxc3 {[%clk 0:01:15.2]} 16. dxc3 {[%clk 0:01:25.9]} 16... Qxd1 {[%clk
0:00:47.9]} 17. Rexd1 {[%clk 0:01:24]} 17... Nc2 {[%clk 0:00:48.3]} 18. Bxc5
{[%clk 0:01:22.6]} 18... Rfc8 {[%clk 0:00:31.9]} 19. Bd6 {[%clk 0:01:14.4]}
19... Bxc4 {[%clk 0:00:24.7]} 20. Bxc4 {[%clk 0:01:12.7]} 20... Nxa1 {[%clk
0:00:19.6]} 21. Rxa1 {[%clk 0:01:04.7]} 21... Ra8 {[%clk 0:00:15.8]} 22. Ra4
{[%clk 0:00:59.3]} 22... Nf4 {[%clk 0:00:09.5]} 23. Kf1 {[%clk 0:00:42.6]} 23...
Nd5 {[%clk 0:00:07.6]} 24. Bxd5 {[%clk 0:00:37.8]} 24... exd5 {[%clk 0:00:08.5]}
25. Ra3 {[%clk 0:00:32.3]} 25... Rc4 {[%clk 0:00:06.7]} 26. Ke2 {[%clk
0:00:28.7]} 26... Rac8 {[%clk 0:00:06.3]} 27. Kd3 {[%clk 0:00:28.6]} 27... f6
{[%clk 0:00:04]} 28. exf6 {[%clk 0:00:27]} 28... gxf6 {[%clk 0:00:04.9]} 29. Nd4
{[%clk 0:00:25.2]} 29... Kf7 {[%clk 0:00:05.3]} 30. Bb4 {[%clk 0:00:24.2]} 30...
R4c7 {[%clk 0:00:03.5]} 31. Ra2 {[%clk 0:00:24.2]} 31... h5 {[%clk 0:00:03]} 32.
Re2 {[%clk 0:00:23.7]} 32... Rg8 {[%clk 0:00:03]} 33. g3 {[%clk 0:00:23.2]}
33... h4 {[%clk 0:00:02.6]} 34. Nf5 {[%clk 0:00:18.8]} 34... hxg3 {[%clk
0:00:01.8]} 35. hxg3 {[%clk 0:00:18.7]} 35... Rh8 {[%clk 0:00:01.3]} 36. Nd6+
{[%clk 0:00:14.6]} 36... Kg6 {[%clk 0:00:02]} 37. Kd4 {[%clk 0:00:12.4]} 37...
Rch7 {[%clk 0:00:02.6]} 38. Kxd5 {[%clk 0:00:12.2]} 38... Rh1 {[%clk 0:00:03.1]}
39. Nc4 {[%clk 0:00:05.7]} 39... Rd1+ {[%clk 0:00:03.4]} 40. Kc5 {[%clk
0:00:03.2]} 40... Rc8+ {[%clk 0:00:03.5]} 41. Kb6 {[%clk 0:00:03.3]} 41... Rxc4
{[%clk 0:00:03.3]} 42. Kxb7 {[%clk 0:00:03.9]} 42... Rg4 {[%clk 0:00:03.2]} 43.
Kxa6 {[%clk 0:00:03.9]} 43... Ra1 {[%clk 0:00:02.7]} 44. Kb5 {[%clk 0:00:03.9]}
44... f5 {[%clk 0:00:01]} 45. Re6+ {[%clk 0:00:03.6]} 45... Kf7 {[%clk
0:00:01.4]} 46. Rb6 {[%clk 0:00:03.2]} 46... Rg8 {[%clk 0:00:02]} 47. a6 {[%clk
0:00:03.1]} 47... Re8 {[%clk 0:00:01.2]} 48. Rb7+ {[%clk 0:00:01.7]} 48... Ke6
{[%clk 0:00:01.3]} 49. a7 {[%clk 0:00:02.4]} 49... Rd8 {[%clk 0:00:01.1]} 50.
Bc5 {[%clk 0:00:02.5]} 50... Ra8 {[%clk 0:00:01.4]} 0-1

[Event "Early-Titled-Tuesday-Blitz-November-28-2023"]
[Site "Chess.com"]
[Date "2023.11.28"]
[Round "11"]
[White "mortngabriel"]
[Black "GothamChess"]
[Result "0-1"]
[WhiteElo "2497"]
[BlackElo "2653"]
[TimeControl "180+1"]
[EndTime "10:12:13 PST"]
[Termination "GothamChess won on time"]

1. e4 {[%clk 0:02:59.5]} 1... d5 {[%clk 0:02:39.3]} 2. exd5 {[%clk 0:02:58.8]}
2... Qxd5 {[%clk 0:02:38.6]} 3. Nc3 {[%clk 0:02:59.1]} 3... Qa5 {[%clk
0:02:38.5]} 4. d4 {[%clk 0:02:59.2]} 4... Nf6 {[%clk 0:02:38.5]} 5. Bc4 {[%clk
0:02:57.1]} 5... Bf5 {[%clk 0:02:37.1]} 6. Bd2 {[%clk 0:02:54.1]} 6... c6 {[%clk
0:02:36.2]} 7. Qe2 {[%clk 0:02:51.1]} 7... e6 {[%clk 0:02:28.8]} 8. O-O-O {[%clk
0:02:47]} 8... Bb4 {[%clk 0:02:25.5]} 9. a3 {[%clk 0:02:45.6]} 9... Be7 {[%clk
0:02:10]} 10. Nf3 {[%clk 0:02:41.4]} 10... Qc7 {[%clk 0:02:07.9]} 11. Ne5 {[%clk
0:02:40.1]} 11... b5 {[%clk 0:02:03.2]} 12. Bxb5 {[%clk 0:02:01.4]} 12... cxb5
{[%clk 0:01:50.4]} 13. Qf3 {[%clk 0:01:57.7]} 13... O-O {[%clk 0:01:51]} 14.
Qxa8 {[%clk 0:01:56.4]} 14... b4 {[%clk 0:01:51.5]} 15. axb4 {[%clk 0:01:52.7]}
15... Bxb4 {[%clk 0:01:49.6]} 16. Qf3 {[%clk 0:01:21.5]} 16... Rc8 {[%clk
0:01:35.3]} 17. Rhe1 {[%clk 0:00:57.8]} 17... Qa5 {[%clk 0:01:31.7]} 18. Kb1
{[%clk 0:00:29.5]} 18... Nd5 {[%clk 0:01:31.2]} 19. Re3 {[%clk 0:00:16.5]} 19...
Nxe3 {[%clk 0:01:23.7]} 20. fxe3 {[%clk 0:00:17.4]} 20... Qc7 {[%clk 0:01:08.6]}
21. g4 {[%clk 0:00:16.5]} 21... Bg6 {[%clk 0:01:05.7]} 22. h4 {[%clk 0:00:16.7]}
22... f6 {[%clk 0:00:56.6]} 23. Nxg6 {[%clk 0:00:16.8]} 23... hxg6 {[%clk
0:00:57.5]} 24. Qe4 {[%clk 0:00:17.4]} 24... Qf7 {[%clk 0:00:52.3]} 25. Rh1
{[%clk 0:00:11.6]} 25... Nc6 {[%clk 0:00:40.2]} 26. h5 {[%clk 0:00:11.5]} 26...
gxh5 {[%clk 0:00:27.3]} 27. gxh5 {[%clk 0:00:12.4]} 27... Bxc3 {[%clk
0:00:23.9]} 28. Bxc3 {[%clk 0:00:12.3]} 28... Ne7 {[%clk 0:00:24.5]} 29. Bd2
{[%clk 0:00:09.6]} 29... Nf5 {[%clk 0:00:15.4]} 30. Qg4 {[%clk 0:00:09.6]} 30...
Kh7 {[%clk 0:00:13.8]} 31. c3 {[%clk 0:00:06.1]} 31... a5 {[%clk 0:00:12.6]} 32.
e4 {[%clk 0:00:06.5]} 32... Nd6 {[%clk 0:00:12.5]} 33. Qf4 {[%clk 0:00:04.3]}
33... Rd8 {[%clk 0:00:09.2]} 34. Rg1 {[%clk 0:00:02.2]} 34... Qb7 {[%clk
0:00:08.1]} 35. e5 {[%clk 0:00:01.6]} 35... Qe4+ {[%clk 0:00:08]} 36. Qxe4+
{[%clk 0:00:02.1]} 36... Nxe4 {[%clk 0:00:08.9]} 37. exf6 {[%clk 0:00:02.9]}
37... Nxd2+ {[%clk 0:00:08.9]} 38. Kc2 {[%clk 0:00:03.6]} 38... Ne4 {[%clk
0:00:05.3]} 39. fxg7 {[%clk 0:00:03.6]} 39... Nf6 {[%clk 0:00:05.2]} 40. Kd3
{[%clk 0:00:03.4]} 40... Nxh5 {[%clk 0:00:05.4]} 41. g8=Q+ {[%clk 0:00:03.2]}
41... Rxg8 {[%clk 0:00:05.2]} 42. Re1 {[%clk 0:00:03.6]} 42... Ng7 {[%clk
0:00:04.2]} 43. Re4 {[%clk 0:00:03.6]} 43... Rb8 {[%clk 0:00:04.5]} 44. Re5
{[%clk 0:00:04.5]} 44... Rxb2 {[%clk 0:00:04]} 45. Rxa5 {[%clk 0:00:04.8]} 45...
Kg6 {[%clk 0:00:04.4]} 46. c4 {[%clk 0:00:04.3]} 46... Kf6 {[%clk 0:00:04.3]}
47. c5 {[%clk 0:00:04.6]} 47... Rb3+ {[%clk 0:00:03.9]} 48. Ke4 {[%clk
0:00:04.4]} 48... Nf5 {[%clk 0:00:03]} 49. Ra1 {[%clk 0:00:03.1]} 49... Re3+
{[%clk 0:00:02.7]} 50. Kf4 {[%clk 0:00:02.7]} 50... Rd3 {[%clk 0:00:03.4]} 51.
Ra4 {[%clk 0:00:01.4]} 51... Rxd4+ {[%clk 0:00:03.1]} 52. Rxd4 {[%clk
0:00:01.9]} 52... Nxd4 {[%clk 0:00:04]} 53. Ke4 {[%clk 0:00:02.8]} 53... Nc6
{[%clk 0:00:04.6]} 0-1

[Event "Early-Titled-Tuesday-Blitz-November-28-2023"]
[Site "Chess.com"]
[Date "2023.11.28"]
[Round "11"]
[White "mbojan"]
[Black "TRadjabov"]
[Result "1-0"]
[WhiteElo "2876"]
[BlackElo "3004"]
[TimeControl "180+1"]
[EndTime "10:12:15 PST"]
[Termination "mbojan won by checkmate"]

1. Nf3 {[%clk 0:03:00.9]} 1... b6 {[%clk 0:03:00.1]} 2. g3 {[%clk 0:03:01.2]}
2... Bb7 {[%clk 0:03:00.8]} 3. Bg2 {[%clk 0:03:01.8]} 3... e6 {[%clk 0:03:01.3]}
4. O-O {[%clk 0:03:02]} 4... Nf6 {[%clk 0:03:02]} 5. d3 {[%clk 0:03:02.7]} 5...
Be7 {[%clk 0:03:02.2]} 6. Nbd2 {[%clk 0:03:03.2]} 6... d6 {[%clk 0:03:02.6]} 7.
c3 {[%clk 0:02:56.7]} 7... Nbd7 {[%clk 0:03:02.6]} 8. Re1 {[%clk 0:02:57.3]}
8... h5 {[%clk 0:03:02.8]} 9. h4 {[%clk 0:02:55.9]} 9... Ng4 {[%clk 0:03:02.8]}
10. e4 {[%clk 0:02:56.2]} 10... g5 {[%clk 0:03:01.1]} 11. hxg5 {[%clk
0:02:54.8]} 11... Bxg5 {[%clk 0:03:02]} 12. Nxg5 {[%clk 0:02:54.9]} 12... Qxg5
{[%clk 0:03:02.2]} 13. Nf3 {[%clk 0:02:55.3]} 13... Qg7 {[%clk 0:03:02.4]} 14.
Nh4 {[%clk 0:02:47.8]} 14... O-O-O {[%clk 0:03:02.1]} 15. Qe2 {[%clk 0:02:45.3]}
15... Rdg8 {[%clk 0:03:02.2]} 16. a4 {[%clk 0:02:44.4]} 16... a6 {[%clk
0:02:59.9]} 17. Bd2 {[%clk 0:02:43.6]} 17... Nde5 {[%clk 0:02:47.8]} 18. d4
{[%clk 0:02:10.5]} 18... Ng6 {[%clk 0:02:46.8]} 19. Bg5 {[%clk 0:02:10.7]} 19...
Nf8 {[%clk 0:02:18.6]} 20. Bd2 {[%clk 0:02:08.8]} 20... f6 {[%clk 0:02:17.9]}
21. Bh3 {[%clk 0:01:39]} 21... Ng6 {[%clk 0:02:13.7]} 22. Nxg6 {[%clk
0:01:37.2]} 22... Qxg6 {[%clk 0:02:13.9]} 23. f3 {[%clk 0:01:30.7]} 23... f5
{[%clk 0:01:45.8]} 24. fxg4 {[%clk 0:00:58]} 24... Bxe4 {[%clk 0:01:14.6]} 25.
g5 {[%clk 0:00:52.4]} 25... Kd7 {[%clk 0:00:45.8]} 26. c4 {[%clk 0:00:43.6]}
26... Qg7 {[%clk 0:00:41.4]} 27. d5 {[%clk 0:00:42.1]} 27... h4 {[%clk
0:00:35.7]} 28. dxe6+ {[%clk 0:00:37.1]} 28... Ke7 {[%clk 0:00:35.9]} 29. g4
{[%clk 0:00:35.6]} 29... Qe5 {[%clk 0:00:35.9]} 30. Qe3 {[%clk 0:00:27.7]} 30...
Qg3+ {[%clk 0:00:17.6]} 31. Qxg3 {[%clk 0:00:25]} 31... hxg3 {[%clk 0:00:18.5]}
32. gxf5 {[%clk 0:00:25]} 32... Bc6 {[%clk 0:00:11]} 33. f6+ {[%clk 0:00:24.6]}
33... Kf8 {[%clk 0:00:11.5]} 34. Bg2 {[%clk 0:00:20.9]} 34... Bxg2 {[%clk
0:00:06.5]} 35. Kxg2 {[%clk 0:00:21.8]} 35... Rh2+ {[%clk 0:00:06.7]} 36. Kxg3
{[%clk 0:00:22.4]} 36... Rxd2 {[%clk 0:00:07.6]} 37. e7+ {[%clk 0:00:11.1]}
37... Ke8 {[%clk 0:00:07.7]} 38. Kf4 {[%clk 0:00:09.1]} 38... Rf2+ {[%clk
0:00:06.9]} 39. Ke3 {[%clk 0:00:08.5]} 39... Rf5 {[%clk 0:00:04.9]} 40. Rg1
{[%clk 0:00:08.3]} 40... Kf7 {[%clk 0:00:03.3]} 41. Rae1 {[%clk 0:00:03.4]}
41... c5 {[%clk 0:00:01.8]} 42. Kd3 {[%clk 0:00:03.3]} 42... Ke8 {[%clk
0:00:02]} 43. Re6 {[%clk 0:00:03]} 43... d5 {[%clk 0:00:01.5]} 44. Rxb6 {[%clk
0:00:02.9]} 44... dxc4+ {[%clk 0:00:01.8]} 45. Kc2 {[%clk 0:00:03.1]} 45... Kf7
{[%clk 0:00:02]} 46. Rd6 {[%clk 0:00:02.5]} 46... Rf2+ {[%clk 0:00:02.2]} 47.
Kb1 {[%clk 0:00:02.9]} 47... c3 {[%clk 0:00:02]} 48. Rd8 {[%clk 0:00:01.5]}
48... Rxb2+ {[%clk 0:00:01.3]} 49. Kc1 {[%clk 0:00:02]} 49... Ra2 {[%clk
0:00:01.7]} 50. Rxg8 {[%clk 0:00:02.2]} 50... Ra1+ {[%clk 0:00:01.8]} 51. Kc2
{[%clk 0:00:02.9]} 51... Rxg1 {[%clk 0:00:02.7]} 52. e8=Q# {[%clk 0:00:03.3]}
1-0